bitfinex-derivatives/quotes_SOLF0:USTF0_20250907
["timestamp","ask_amount","ask_price","bid_price","bid_amount"]
[1757254227580,5.50865155,204.02,203.93,8.77236248]
[1757254227780,5.50865155,204.02,203.94,4.41249918]
[1757254227982,5.50865155,204.02,203.95,4.41249918]
[1757254228182,5.50865155,204.02,203.96,4.41249918]
[1757254228482,13.10865155,204.03,203.97,4.41211265]
[1757254228683,13.10865155,204.03,203.92,7.6]
[1757254228883,5.50865155,204.02,203.93,8.77199538]
[1757254229076,5.50865155,204.02,203.94,4.41231714]
[1757254229382,5.50865155,204.02,203.83,4.09767911]
[1757254229383,7.6,204.0,203.89,34.26]
[1757254229583,13.10865155,204.0,203.9,8.77502794]
[1757254229787,13.10865155,204.0,203.91,8.77502794]
[1757254229988,13.10865155,204.0,203.92,4.41383242]
[1757254230284,13.10865155,204.0,203.93,4.41383242]
[1757254230478,13.10865155,204.0,203.94,4.41383242]
[1757254230674,13.10865155,204.0,203.89,34.26]
[1757254230882,13.10865155,204.0,203.9,16.37440498]
[1757254231079,13.10865155,204.0,203.91,8.77440498]
[1757254231279,13.10865155,204.0,203.92,4.41351902]
[1757254231478,13.10865155,203.98,203.86,7.6]
[1757254231675,7.6,203.96,203.87,8.77654363]
[1757254231875,13.10865155,203.96,203.88,4.4145794]
[1757254232085,7.6,203.96,203.89,4.4145794]
[1757254232286,7.6,203.96,203.9,4.4145794]
[1757254232487,7.6,203.96,203.86,7.6]
[1757254232683,7.6,203.96,203.87,8.77473931]
[1757254232885,7.6,203.96,203.88,4.41366843]
[1757254233183,7.6,203.96,203.86,7.6]
[1757254233184,5.50865155,203.94,203.85,329.56]
[1757254233385,13.10865155,203.93,203.86,4.41497496]
[1757254233684,13.10865155,203.93,203.82,7.6]
[1757254233877,13.10865155,203.93,203.83,4.41385691]
[1757254234086,13.10865155,203.93,203.85,7.6]
[1757254234281,7.6,203.93,203.86,4.41385691]
[1757254234481,7.6,203.93,203.87,4.41104992]
[1757254234785,7.6,203.93,203.85,7.6]
[1757254234986,13.10865155,203.93,203.82,120.6]
[1757254235185,7.6,203.93,203.83,4.41192569]
[1757254235486,7.6,203.93,203.84,4.41192569]
[1757254235684,7.6,203.93,203.85,4.41192569]
[1757254235891,7.6,203.93,203.82,120.6]
[1757254236083,7.6,203.93,203.83,4.4103642]
[1757254236283,7.6,203.93,203.84,4.4103642]
[1757254236482,7.6,203.93,203.85,4.4103642]
[1757254236688,7.6,203.93,203.84,7.73]
[1757254236883,7.6,203.93,203.85,4.40895701]
[1757254237189,5.50865155,203.96,203.87,7.73]
[1757254238288,13.41865155,203.97,203.87,7.73]
[1757254239082,7.91,203.97,203.88,4.40574811]
[1757254239282,7.91,203.97,203.89,4.40574811]
[1757254239586,5.50865155,204.0,203.9,12.13486818]
[1757254239782,5.50865155,204.0,203.9,7.73]
[1757254240390,5.50865155,203.99,203.9,7.73]
[1757254241093,7.91,203.98,203.83,7.73]
[1757254241294,5.50865155,203.99,203.84,37.24896916]
[1757254241492,7.91,203.98,203.86,7.73]
[1757254241688,7.91,203.98,203.87,8.80896916]
[1757254241890,7.91,203.95,203.86,7.73]
[1757254242192,7.91,203.95,203.87,4.45765844]
[1757254242392,7.91,203.95,203.83,46.04]
[1757254242593,7.91,203.95,203.84,8.81414901]
[1757254242798,7.91,203.95,203.85,4.45773163]
[1757254243091,7.91,203.95,203.83,46.04]
[1757254243092,7.91,203.95,203.86,4.45773163]
[1757254243285,7.91,203.95,203.87,4.45773163]
[1757254243485,7.91,203.95,203.83,46.04]
[1757254243683,7.91,203.95,203.85,7.73]
[1757254243889,7.91,203.95,203.86,4.45781272]
[1757254244092,7.91,203.95,203.87,4.45781272]
[1757254244392,7.91,203.95,203.85,7.73]
[1757254244588,7.91,203.95,203.86,4.45758323]
[1757254244795,7.91,203.95,203.87,4.45758323]
[1757254244993,7.91,203.95,203.85,7.73]
[1757254245195,7.91,203.95,203.86,4.45758725]
[1757254245390,7.91,203.95,203.87,4.45758725]
[1757254245585,7.91,203.95,203.85,7.73]
[1757254245789,7.91,203.95,203.86,4.4573425]
[1757254245985,7.91,203.95,203.87,4.4573425]
[1757254246199,7.91,203.95,203.85,7.73]
[1757254246492,7.91,203.95,203.86,4.45735054]
[1757254246693,7.91,203.95,203.87,4.45735054]
[1757254246894,7.91,203.95,203.85,7.73]
[1757254247195,7.91,203.95,203.86,4.45660663]
[1757254247389,7.91,203.95,203.87,4.45660663]
[1757254247589,7.91,203.95,203.85,7.73]
[1757254247896,7.91,203.95,203.83,46.04]
[1757254247897,5.50865155,203.97,203.87,7.73]
[1757254248087,7.91,203.96,203.88,4.45624837]
[1757254248292,7.91,203.96,203.87,7.73]
[1757254248595,7.91,203.96,203.88,4.45561751]
[1757254248796,7.91,203.96,203.87,7.73]
[1757254248998,7.91,203.96,203.88,4.45561945]
[1757254249198,5.50865155,203.97,203.87,7.73]
[1757254249399,5.50865155,203.99,203.88,4.45561945]
[1757254249594,7.91,204.0,203.9,7.73]
[1757254249797,7.91,204.0,203.92,7.73]
[1757254250107,5.50865155,204.03,203.93,4.45561945]
[1757254250299,5.50865155,204.03,203.91,32.14]
[1757254250300,7.91,204.04,203.94,12.18561945]
[1757254250497,7.91,204.04,203.95,4.45561945]
[1757254250695,7.91,204.04,203.96,4.45561945]
[1757254250898,7.91,204.04,203.94,7.73]
[1757254251200,7.91,204.04,203.95,4.45065973]
[1757254251402,7.91,204.04,203.96,4.45065973]
[1757254251601,7.91,204.04,203.94,7.73]
[1757254251898,7.91,204.04,203.95,4.45085723]
[1757254252098,7.91,204.04,203.96,4.45085723]
[1757254252399,7.91,204.04,203.97,12.18059657]
[1757254252703,7.91,204.04,203.97,7.73]
[1757254252998,13.41865155,204.08,203.98,4.4499098]
[1757254253201,13.41865155,204.08,203.99,4.44956924]
[1757254253394,5.50865155,204.07,203.97,7.73]
[1757254253702,5.50865155,204.07,203.98,4.44911675]
[1757254253998,5.50865155,204.07,203.97,7.73]
[1757254254198,5.50865155,204.07,203.98,4.44931493]
[1757254254401,7.91,204.06,203.97,7.73]
[1757254254602,13.41865155,204.06,203.98,4.4489042]
[1757254254806,5.50865155,204.05,203.97,7.73]
[1757254256207,5.50865155,204.06,203.97,7.73]
[1757254256396,13.41865155,204.05,203.9,7.73]
[1757254256600,7.91,204.03,203.91,8.78878794]
[1757254256796,13.41865155,204.03,203.92,4.44957872]
[1757254256996,13.41865155,204.03,203.93,4.44957872]
[1757254257201,13.41865155,204.03,203.94,4.44957872]
[1757254257404,7.91,204.02,203.9,44.07]
[1757254257609,7.91,204.02,203.91,4.45120552]
[1757254257801,7.91,204.02,203.92,4.45120552]
[1757254258003,7.91,204.02,203.93,4.45120552]
[1757254258310,7.91,204.02,203.9,44.07]
[1757254258607,7.91,204.02,203.91,4.45142147]
[1757254258807,7.91,204.02,203.92,4.45142147]
[1757254259002,7.91,204.02,203.93,4.45142147]
[1757254259203,13.41865155,204.02,203.9,44.07]
[1757254259408,13.41865155,204.02,203.91,4.45162814]
[1757254259609,7.91,204.0,203.92,4.45162814]
[1757254259810,7.91,204.0,203.9,7.73]
[1757254260009,7.91,204.0,203.91,4.45235061]
[1757254260213,7.91,204.0,203.92,4.45235061]
[1757254260411,7.91,204.0,203.9,7.73]
[1757254260607,7.91,204.0,203.91,4.45230275]
[1757254260812,13.41865155,204.0,203.82,7.73]
[1757254261013,5.50865155,203.97,203.83,26.67765574]
[1757254261208,7.91,203.95,203.84,8.79765574]
[1757254261410,7.91,203.95,203.85,4.45446497]
[1757254261615,13.41865155,203.95,203.82,7.73]
[1757254261911,13.41865155,203.95,203.78,7.73]
[1757254261912,7.91,203.92,203.78,7.73]
[1757254262215,13.41865155,203.92,203.79,8.68741295]
[1757254262411,13.41865155,203.92,203.81,7.73]
[1757254262608,7.91,203.92,203.82,4.33974772]
[1757254262811,13.41865155,203.92,203.81,7.73]
[1757254263109,13.41865155,203.92,203.83,7.73]
[1757254263316,5.50865155,203.93,203.84,4.34041765]
[1757254263616,13.41865155,203.93,203.83,7.73]
[1757254264009,7.91,203.93,203.85,7.73]
[1757254264214,5.50865155,203.94,203.85,7.73]
[1757254264410,13.41865155,203.97,203.87,7.73]
[1757254264615,5.50865155,203.99,203.89,7.73]
[1757254264915,7.43,203.98,203.89,7.73]
[1757254265119,7.43,203.98,203.9,4.34043113]
[1757254265313,5.50865155,204.0,203.91,4.34117663]
[1757254265512,12.93865155,204.02,203.92,12.40011709]
[1757254265707,5.50865155,204.01,203.93,4.34011709]
[1757254265912,5.50865155,204.01,203.92,8.06]
[1757254266113,5.50865155,204.0,203.92,8.06]
[1757254266314,12.93865155,204.02,203.94,8.06]
[1757254266611,5.50865155,204.03,203.94,8.06]
[1757254266814,5.50865155,204.03,203.95,4.34043562]
[1757254267011,5.50865155,204.03,203.94,8.06]
[1757254267212,5.50865155,204.03,203.96,8.06]
[1757254267412,5.50865155,204.04,203.96,8.06]
[1757254267618,5.50865155,204.03,203.96,8.06]
[1757254267923,5.50865155,204.04,203.96,8.06]
[1757254268514,12.93865155,204.03,203.92,62.1]
[1757254268822,12.93865155,204.03,203.93,4.33884085]
[1757254269025,12.93865155,204.03,203.94,4.33884085]
[1757254269218,12.93865155,204.03,203.92,8.06]
[1757254269521,5.50865155,203.99,203.89,116.32]
[1757254269820,7.43,203.98,203.9,4.34106947]
[1757254270017,7.43,203.98,203.89,116.32]
[1757254270018,7.43,203.98,203.91,4.34093054]
[1757254270217,5.50865155,204.0,203.92,4.34074692]
[1757254270422,5.50865155,204.01,203.93,4.33994384]
[1757254270621,5.50865155,204.01,203.92,8.06]
[1757254270823,7.43,203.99,203.92,8.06]
[1757254271014,12.93865155,203.99,203.88,129.26]
[1757254271212,12.93865155,203.99,203.89,4.37083617]
[1757254271431,5.50865155,203.95,203.83,337.7]
[1757254271616,12.93865155,203.94,203.84,4.37368668]
[1757254271820,12.93865155,203.94,203.85,4.37368668]
[1757254272023,7.43,203.94,203.86,4.37368668]
[1757254272226,7.43,203.94,203.87,4.37368668]
[1757254272422,5.50865155,203.97,203.88,4.37327235]
[1757254272627,12.93865155,203.98,203.89,4.37327235]
[1757254272928,12.93865155,203.98,203.83,329.64]
[1757254272929,12.93865155,203.98,203.91,8.06]
[1757254273128,5.50865155,203.99,203.91,8.06]
[1757254273323,5.50865155,204.0,203.92,4.37115576]
[1757254273519,5.50865155,204.0,203.91,8.06]
[1757254273723,5.50865155,204.0,203.92,4.37114161]
[1757254273922,5.50865155,204.01,203.94,8.06]
[1757254274122,12.93865155,204.02,203.94,8.06]
[1757254274324,5.50865155,204.03,203.95,4.36978214]
[1757254274522,5.50865155,204.06,203.97,8.06]
[1757254274727,12.93865155,204.07,203.98,4.36978214]
[1757254275025,12.93865155,204.07,203.99,4.36736425]
[1757254275222,12.93865155,204.07,203.97,8.06]
[1757254275223,5.50865155,204.06,203.97,8.06]
[1757254275421,5.50865155,204.05,203.97,8.06]
[1757254275828,5.50865155,204.06,203.97,8.06]
[1757254276127,7.43,204.07,203.98,4.3663875]
[1757254276128,12.93865155,204.07,203.98,4.3663875]
[1757254276327,12.93865155,204.07,203.99,4.3663875]
[1757254276521,12.93865155,204.07,203.97,8.06]
[1757254276522,5.50865155,204.06,203.97,8.06]
[1757254276725,12.93865155,204.05,203.91,20.66]
[1757254276929,5.50865155,204.04,203.92,8.74582154]
[1757254277225,7.43,204.05,203.94,8.06]
[1757254277424,14.73,204.12,203.96,8.06]
[1757254277425,5.50865155,204.07,203.96,8.06]
[1757254277634,5.50865155,204.07,203.97,4.36642211]
[1757254277830,5.50865155,204.06,203.96,8.06]
[1757254278028,7.43,204.05,203.96,8.06]
[1757254278529,12.93865155,204.04,203.92,8.06]
[1757254278731,12.93865155,204.04,203.93,4.36723957]
[1757254278930,5.50865155,204.03,203.94,4.36723957]
[1757254279127,5.50865155,204.03,203.92,8.06]
[1757254279326,5.50865155,204.03,203.94,8.06]
[1757254279528,7.43,204.04,203.95,4.36691426]
[1757254279727,7.43,204.04,203.94,8.06]
[1757254279932,5.50865155,204.07,203.97,8.06]
[1757254280523,5.50865155,204.06,203.97,8.06]
[1757254280723,5.50865155,204.07,203.97,8.06]
[1757254281134,54.74,204.11,203.97,8.06]
[1757254281135,12.93865155,204.06,203.97,8.06]
[1757254281329,12.93865155,204.06,203.85,68.6731]
[1757254281531,5.50865155,204.04,203.87,8.06]
[1757254281833,12.93865155,204.05,203.89,8.06]
[1757254282036,12.93865155,204.05,203.91,8.06]
[1757254282231,12.93865155,204.05,203.92,8.71415317]
[1757254282531,7.43,204.03,203.93,4.36621479]
[1757254282729,12.93865155,204.03,203.94,4.36621479]
[1757254282929,12.93865155,204.03,203.91,8.06]
[1757254283231,12.93865155,204.03,203.92,4.3681856]
[1757254283432,12.93865155,204.03,203.93,4.3681856]
[1757254283626,12.93865155,204.03,203.94,12.42824135]
[1757254283830,7.43,204.03,203.94,8.06]
[1757254284032,7.43,204.03,203.95,4.3678553]
[1757254284232,7.43,204.03,203.94,8.06]
[1757254284438,7.43,204.03,203.95,4.3677911]
[1757254284736,7.43,204.03,203.94,8.06]
[1757254284934,5.50865155,204.04,203.96,8.06]
[1757254285328,5.50865155,204.06,203.97,4.36648143]
[1757254285528,5.50865155,204.06,203.96,8.06]
[1757254285739,5.50865155,204.07,203.97,4.36624723]
[1757254285934,5.50865155,204.07,203.98,4.36624723]
[1757254286234,5.50865155,204.07,203.96,8.06]
[1757254286436,5.50865155,204.06,203.97,4.36617872]
[1757254286631,5.50865155,204.07,203.98,4.36549777]
[1757254286835,5.50865155,204.07,203.96,8.06]
[1757254287032,5.50865155,204.07,203.97,4.3654516]
[1757254287234,5.50865155,204.07,203.98,4.3654516]
[1757254287435,5.50865155,204.07,203.96,8.06]
[1757254287644,5.50865155,204.07,203.97,4.36549446]
[1757254287839,7.43,204.06,203.98,4.36549446]
[1757254288039,7.43,204.06,203.96,8.06]
[1757254288241,7.43,204.06,203.97,4.36582455]
[1757254288535,7.43,204.06,203.98,4.36582455]
[1757254288740,7.43,204.06,203.96,8.06]
[1757254288941,7.43,204.06,203.97,4.36605589]
[1757254289250,7.43,204.06,203.98,4.36605589]
[1757254289436,12.93865155,204.06,203.96,8.06]
[1757254289639,7.43,204.06,203.97,4.36638406]
[1757254289940,7.43,204.06,203.98,4.36638406]
[1757254290142,12.93865155,204.06,203.96,8.06]
[1757254290335,12.93865155,204.06,203.97,4.36638442]
[1757254290537,12.93865155,204.06,203.98,4.36638442]
[1757254290738,12.93865155,204.06,203.96,8.06]
[1757254290935,12.93865155,204.06,203.97,4.36682206]
[1757254291243,12.93865155,204.06,203.96,8.06]
[1757254291439,5.50865155,204.05,203.97,4.36774371]
[1757254291743,12.93865155,204.06,203.96,8.06]
[1757254292042,12.93865155,204.06,203.97,4.36774747]
[1757254292236,5.50865155,204.05,203.96,8.06]
[1757254292437,5.50865155,204.05,203.97,4.36788886]
[1757254292640,7.43,204.04,203.92,57.44]
[1757254292843,12.93865155,204.04,203.93,8.72038714]
[1757254293041,12.93865155,204.04,203.95,8.06]
[1757254293241,5.50865155,204.03,203.95,8.06]
[1757254293441,5.50865155,204.03,203.96,4.37008876]
[1757254293642,12.93865155,204.04,203.95,8.06]
[1757254293844,12.93865155,204.04,203.96,4.37007461]
[1757254294044,12.93865155,204.04,203.95,8.06]
[1757254294244,5.50865155,204.03,203.96,4.37112349]
[1757254294542,5.50865155,204.03,203.95,8.06]
[1757254294741,5.50865155,204.03,203.96,4.37207232]
[1757254295040,7.43,204.04,203.97,4.37263385]
[1757254295246,7.43,204.04,203.95,8.06]
[1757254295439,5.50865155,204.06,203.96,4.37192206]
[1757254295645,5.50865155,204.04,203.95,7.39]
[1757254295845,13.59865155,204.05,203.96,4.37301139]
[1757254296046,13.59865155,204.05,203.97,4.37301139]
[1757254296247,13.59865155,204.05,203.95,7.39]
[1757254296448,13.59865155,204.05,203.96,4.37243894]
[1757254296644,13.59865155,204.05,203.97,4.37243894]
[1757254296843,13.59865155,204.05,203.98,4.37258102]
[1757254297145,13.59865155,204.05,203.95,7.39]
[1757254297345,13.59865155,204.05,203.96,4.37294502]
[1757254297548,13.59865155,204.05,203.97,4.3726717]
[1757254297848,13.59865155,204.05,203.95,7.39]
[1757254298146,5.50865155,204.06,203.97,7.39]
[1757254298339,5.50865155,204.07,203.98,4.37283902]
[1757254298543,8.09,204.06,203.99,4.37283902]
[1757254298741,8.09,204.06,203.97,7.39]
[1757254299046,8.09,204.06,203.98,4.37142787]
[1757254299345,8.09,204.06,203.99,4.37142787]
[1757254299547,8.09,204.06,203.97,7.39]
[1757254299744,13.59865155,204.06,203.98,4.37128051]
[1757254299943,8.09,204.02,203.92,7.39]
[1757254300144,8.09,204.02,203.93,8.72919573]
[1757254300349,8.09,204.02,203.94,4.3737493]
[1757254300544,8.09,204.02,203.95,4.3737493]
[1757254300742,13.59865155,204.02,203.92,7.39]
[1757254301042,13.59865155,204.0,203.84,7.39]
[1757254301244,5.50865155,203.97,203.85,8.73460727]
[1757254301449,13.59865155,203.96,203.86,8.73460727]
[1757254301742,8.09,203.93,203.84,7.39]
[1757254301937,13.59865155,203.93,203.84,7.39]
[1757254302140,8.09,203.93,203.84,7.39]
[1757254302539,13.59865155,203.93,203.84,7.39]
[1757254303150,8.09,203.93,203.84,7.39]
[1757254303345,13.59865155,203.93,203.84,7.39]
[1757254303749,8.09,203.93,203.84,7.39]
[1757254308854,5.50865155,203.96,203.85,4.35640679]
[1757254309054,5.50865155,203.96,203.86,7.39]
[1757254309552,5.50865155,203.97,203.87,4.35587381]
[1757254309754,5.50865155,204.0,203.89,7.39]
[1757254309950,13.59865155,204.01,203.9,4.35817102]
[1757254310157,5.50865155,204.0,203.89,7.39]
[1757254310344,13.59865155,204.01,203.89,7.39]
[1757254310544,8.09,203.98,203.89,7.39]
[1757254310744,13.59865155,203.98,203.89,7.39]
[1757254311757,8.09,203.95,203.85,129.45]
[1757254311955,8.09,203.94,203.85,129.45]
[1757254312156,13.59865155,203.94,203.85,129.45]
[1757254312952,8.09,203.93,203.85,122.06]
[1757254313157,8.09,203.93,203.83,329.64]
[1757254313552,8.09,203.93,203.84,7.39]
[1757254314556,8.09,203.93,203.85,4.35836793]
[1757254314749,5.50865155,203.96,203.83,334.055]
[1757254314956,13.59865155,203.97,203.85,7.39]
[1757254315156,8.09,203.97,203.86,4.35837187]
[1757254315355,8.09,203.97,203.85,7.39]
[1757254315552,8.09,203.97,203.86,4.35745864]
[1757254315751,13.59865155,203.97,203.85,7.39]
[1757254315956,8.09,203.95,203.85,7.39]
[1757254316450,13.59865155,203.95,203.85,7.39]
[1757254317062,8.09,203.95,203.85,7.39]
[1757254317859,5.50865155,203.96,203.85,7.39]
[1757254318064,5.50865155,203.98,203.88,0.03309374]
[1757254318362,0.0366926,203.92,203.9,7.39]
[1757254318859,8.1266926,203.92,203.88,0.03309374]
[1757254319060,8.09,203.91,203.88,0.03309374]
[1757254319259,0.0366926,203.92,203.88,0.03309374]
[1757254319460,8.09,203.91,203.88,0.03309374]
[1757254319760,0.0366926,203.92,203.88,0.03309374]
[1757254319957,8.09,203.91,203.88,0.03309374]
[1757254320163,0.0366926,203.92,203.88,0.03309374]
[1757254320465,8.09,203.91,203.88,0.03309374]
[1757254321364,0.0366926,203.92,203.88,0.03309374]
[1757254322361,8.09,203.91,203.88,0.03309374]
[1757254322864,0.0366926,203.92,203.88,0.03309374]
[1757254323067,8.09,203.91,203.88,0.03309374]
[1757254323361,0.0366926,203.92,203.88,0.03309374]
[1757254323562,8.09,203.91,203.88,0.03309374]
[1757254324556,5.54534415,203.92,203.88,0.03309374]
[1757254324765,8.09,203.91,203.88,0.03309374]
[1757254324962,7.75,203.91,203.88,0.03309374]
[1757254325668,0.0366926,203.92,203.88,0.03309374]
[1757254325860,7.75,203.91,203.88,0.03309374]
[1757254326665,0.0366926,203.92,203.88,8.09309374]
[1757254326864,7.7866926,203.92,203.88,0.03309374]
[1757254327265,7.75,203.91,203.88,0.03309374]
[1757254328466,0.0366926,203.92,203.88,0.03309374]
[1757254328669,7.75,203.91,203.88,0.03309374]
[1757254329068,0.0366926,203.92,203.88,0.03309374]
[1757254329470,7.75,203.91,203.88,0.03309374]
[1757254329771,0.0366926,203.92,203.88,0.03309374]
[1757254329970,7.75,203.91,203.88,0.03309374]
[1757254330171,0.0366926,203.92,203.88,0.03309374]
[1757254330368,7.75,203.91,203.88,0.03309374]
[1757254330665,0.0366926,203.92,203.88,0.03309374]
[1757254331072,7.75,203.91,203.88,0.03309374]
[1757254331269,5.54534415,203.92,203.88,0.03309374]
[1757254331472,7.75,203.91,203.88,0.03309374]
[1757254332162,5.54534415,203.92,203.88,0.03309374]
[1757254332572,7.75,203.91,203.88,0.03309374]
[1757254333171,0.0366926,203.92,203.88,0.03309374]
[1757254333569,7.75,203.91,203.88,0.03309374]
[1757254334170,0.0366926,203.92,203.88,0.03309374]
[1757254334674,0.0366926,203.92,203.88,8.09309374]
[1757254335781,0.0366926,203.92,203.88,0.03309374]
[1757254335977,7.75,203.91,203.88,0.03309374]
[1757254336579,0.0366926,203.92,203.89,8.06]
[1757254341878,7.75,203.91,203.88,0.03309374]
[1757254342081,0.0366926,203.92,203.88,8.09309374]
[1757254343375,7.75,203.91,203.88,0.03309374]
[1757254343579,7.75,203.89,203.88,0.03309374]
[1757254343781,13.25865155,203.89,203.88,0.03309374]
[1757254344276,16.00285998,203.89,203.88,0.03309374]
[1757254346182,16.50285998,203.89,203.88,0.03309374]
[1757254346783,8.25,203.89,203.88,0.03309374]
[1757254347283,8.25,203.89,203.77,8.06]
[1757254347478,5.50265952,203.85,203.78,4.37002925]
[1757254347683,5.50265952,203.85,203.79,4.37002925]
[1757254347882,5.50265952,203.85,203.77,8.06]
[1757254348083,5.50265952,203.84,203.78,4.37002514]
[1757254348383,5.50265952,203.85,203.77,8.06]
[1757254348579,0.0344744,203.83,203.78,4.36898805]
[1757254348782,0.0344744,203.83,203.74,8.06]
[1757254348982,0.0344744,203.83,203.76,8.06]
[1757254349181,0.0344744,203.83,203.77,4.36879697]
[1757254349483,0.0344744,203.83,203.76,8.06]
[1757254349685,5.50265952,203.82,203.76,8.06]
[1757254349884,5.50265952,203.81,203.72,8.06]
[1757254350183,5.50265952,203.82,203.73,4.36961655]
[1757254350387,5.50265952,203.81,203.72,8.06]
[1757254350589,0.03337098,203.79,203.72,8.06]
[1757254352985,5.50265952,203.78,203.68,184.61230925]
[1757254353281,7.75,203.77,203.68,8.06]
[1757254353483,0.03337098,203.79,203.59,329.8]
[1757254353484,13.25265952,203.76,203.61,34.3]
[1757254353687,13.25265952,203.76,203.62,12.42342546]
[1757254353877,13.25265952,203.76,203.64,8.06]
[1757254354082,0.03168014,203.71,203.65,4.36342546]
[1757254354283,0.03168014,203.71,203.64,8.06]
[1757254356081,7.68,203.7,203.6,8.14]
[1757254356681,0.03215661,203.67,203.6,8.14]
[1757254361085,7.71215661,203.67,203.6,8.14]
[1757254361283,0.03215661,203.67,203.6,8.14]
[1757254362390,7.71215661,203.67,203.6,8.14]
[1757254366689,7.68,203.66,203.51,8.14]
[1757254367488,0.03733178,203.61,203.51,8.14]
[1757254368087,7.68,203.6,203.51,8.14]
[1757254370697,0.03733178,203.61,203.51,8.14]
[1757254371797,0.03733178,203.61,203.51,12.5619]
[1757254371996,0.03733178,203.61,203.52,8.14]
[1757254372492,7.68,203.68,203.53,4.4214]
[1757254372700,0.03582396,203.59,203.54,8.14]
[1757254373096,7.68,203.68,203.56,8.14]
[1757254375697,45.89,203.74,203.56,8.14]
[1757254375893,337.76,203.72,203.56,8.14]
[1757254376599,337.76,203.72,203.56,12.5608]
[1757254376801,337.76,203.72,203.57,8.14]
[1757254379395,337.76,203.72,203.57,12.5606]
[1757254379594,337.76,203.72,203.58,8.14]
[1757254379998,337.76,203.72,203.58,4.4204]
[1757254380195,337.76,203.72,203.59,8.14]
[1757254382098,7.68,203.72,203.59,8.14]
[1757254382494,7.68,203.76,203.59,8.14]
[1757254382690,7.68,203.76,203.62,4.4195]
[1757254382891,122.08,203.78,203.63,8.14]
[1757254383096,137.6877605,203.73,203.63,8.14]
[1757254385990,7.68,203.73,203.63,8.14]
[1757254386401,8.01,203.77,203.63,8.14]
[1757254386593,8.01,203.77,203.64,4.4191]
[1757254386793,8.01,203.77,203.65,7.51]
[1757254387796,8.01,203.83,203.69,7.51]
[1757254388104,8.01,203.83,203.7,7.51]
[1757254388302,8.01,203.83,203.7,104.49]
[1757254388597,8.01,203.83,203.7,7.51]
[1757254390802,8.01,203.83,203.61,330.1]
[1757254390999,5.50265952,203.83,203.61,330.1]
[1757254391199,5.50265952,203.82,203.62,7.51]
[1757254391404,8.01,203.81,203.64,7.51]
[1757254391601,8.01,203.81,203.64,55.43]
[1757254392204,8.01,203.81,203.65,7.51]
[1757254393403,8.01,203.81,203.66,7.51]
[1757254393701,8.01,203.81,203.67,7.51]
[1757254394698,8.01,203.81,203.68,101.94]
[1757254394901,5.50265952,203.83,203.67,129.49]
[1757254395107,452.22,203.84,203.67,129.49]
[1757254395108,5.50265952,203.82,203.67,129.49]
[1757254395304,8.01,203.81,203.67,129.49]
[1757254395499,8.01,203.81,203.67,7.51]
[1757254395704,5.50265952,203.82,203.67,7.51]
[1757254395901,8.01,203.81,203.67,7.51]
[1757254398102,8.01,203.81,203.68,7.51]
[1757254399902,8.01,203.81,203.7,7.51]
[1757254404508,8.01,203.81,203.7,11.9278]
[1757254404709,8.01,203.81,203.71,7.51]
[1757254405515,8.01,203.85,203.72,7.51]
[1757254406018,13.51265952,203.89,203.75,7.51]
[1757254406210,8.01,203.89,203.77,7.51]
[1757254408418,13.51265952,203.89,203.77,7.51]
[1757254408618,13.51265952,203.89,203.74,8.8]
[1757254408822,13.51265952,203.89,203.73,7.51]
[1757254409018,65.19,203.93,203.73,7.51]
[1757254409019,5.50265952,203.88,203.73,7.51]
[1757254409217,8.01,203.87,203.73,7.51]